bitfinex/quotes_ETHUSD_20230113
["timestamp","ask_amount","ask_price","bid_price","bid_amount"]
[1673590361334,63.93545072,1407.0,1406.9,0.10818599]
[1673590361534,66.93145072,1407.0,1406.9,0.10818599]
[1673590361991,14.21666,1406.8,1406.7,0.11020358]
[1673590362164,17.92199272,1406.8,1406.7,0.11020358]
[1673590362536,25.03032272,1406.8,1406.7,0.11020358]
[1673590362690,25.26032272,1406.8,1406.7,0.11020358]
[1673590365276,30.02186822,1406.8,1406.7,0.11020358]
[1673590365429,34.66132229,1406.8,1406.7,0.11020358]
[1673590365645,59.78672229,1406.8,1406.7,0.11020358]
[1673590370216,62.78672229,1406.8,1406.7,0.11020358]
[1673590371944,63.84092966,1406.8,1406.7,0.11020358]
[1673590373254,65.60458113,1406.8,1406.7,0.11020358]
[1673590373503,63.84092966,1406.8,1406.7,0.11020358]
[1673590373859,65.60458302,1406.8,1406.7,0.11020358]
[1673590374283,67.12158302,1406.8,1406.7,0.11020358]
[1673590377372,69.76708664,1406.8,1406.7,0.11020358]
[1673590379146,71.34839769,1406.8,1406.7,0.11020358]
[1673590379380,69.76708664,1406.8,1406.7,0.11020358]
[1673590381278,70.29419032,1406.8,1406.7,0.11020358]
[1673590381847,70.29419032,1406.8,1406.5,1e-08]
[1673590382202,12.47213316,1406.7,1406.5,1e-08]
[1673590382420,10.71567272,1406.6,1406.5,1e-08]
[1673590382581,10.81467272,1406.6,1406.5,1e-08]
[1673590387648,10.81467272,1406.6,1406.5,0.40164201]
[1673590388112,15.57621822,1406.6,1406.5,0.40164201]
[1673590388328,35.23156715,1406.6,1406.5,0.40164201]
[1673590388540,36.28573815,1406.6,1406.5,0.40164201]
[1673590388748,35.23156715,1406.6,1406.5,0.40164201]
[1673590388916,30.47002165,1406.6,1406.5,0.40164201]
[1673590389118,31.52419265,1406.6,1406.5,0.40164201]
[1673590389780,30.00719265,1406.6,1406.5,0.40164201]
[1673590390973,40.7596329,1406.6,1406.5,0.40164201]
[1673590391143,42.7054619,1406.6,1406.5,0.40164201]
[1673590392011,57.3540619,1406.6,1406.5,0.40164201]
[1673590392217,60.3820619,1406.6,1406.5,0.40164201]
[1673590393070,74.3374619,1406.6,1406.5,0.40164201]
[1673590393236,76.45429434,1406.6,1406.5,0.40164201]
[1673590393912,66.74889434,1406.6,1406.5,0.40164201]
[1673590394205,64.6320619,1406.6,1406.5,0.40164201]
[1673590394426,74.3374619,1406.6,1406.5,0.40164201]
[1673590395037,64.6320619,1406.6,1406.5,0.40164201]
[1673590395246,66.74889434,1406.6,1406.5,0.40164201]
[1673590395745,76.45429434,1406.6,1406.5,0.40164201]
[1673590395962,74.3374619,1406.6,1406.5,0.40164201]
[1673590396162,76.45429434,1406.6,1406.5,0.40164201]
[1673590396379,66.74889434,1406.6,1406.5,0.40164201]
[1673590397152,76.04159434,1406.6,1406.5,0.40164201]
[1673590397740,66.74889434,1406.6,1406.5,0.40164201]
[1673590398312,66.74889434,1406.6,1406.3,0.12927753]
[1673590398313,6.6591547,1406.4,1406.3,0.12927753]
[1673590398506,49.34993996,1406.4,1406.3,0.12927753]
[1673590398837,51.11394603,1406.4,1406.3,0.12927753]
[1673590399051,75.46814603,1406.4,1406.3,0.12927753]
[1673590401280,78.11414805,1406.4,1406.3,0.12927753]
[1673590401449,84.41165518,1406.4,1406.3,0.12927753]
[1673590401867,2.0,1406.3,1406.2,1e-08]
[1673590402091,10.5781363,1406.3,1406.2,1e-08]
[1673590402354,32.0096863,1406.3,1406.2,1e-08]
[1673590405447,38.99225826,1406.3,1406.2,1e-08]
[1673590405653,49.39310177,1406.3,1406.2,1e-08]
[1673590405923,47.81022833,1406.3,1406.2,1e-08]
[1673590407676,49.39310177,1406.3,1406.2,1e-08]
[1673590408028,47.81022833,1406.3,1406.2,1e-08]
[1673590409229,52.06022833,1406.3,1406.2,1e-08]
[1673590409563,52.58785281,1406.3,1406.2,1e-08]
[1673590409965,53.64284016,1406.3,1406.2,1e-08]
[1673590410706,53.64284016,1406.3,1406.1,0.13952036]
[1673590410913,17.26780523,1406.2,1406.1,0.13952036]
[1673590411167,39.75587258,1406.2,1406.1,0.13952036]
[1673590411697,38.70088523,1406.2,1406.1,0.13952036]
[1673590411911,51.49468523,1406.2,1406.1,0.13952036]
[1673590413375,52.99768523,1406.2,1406.1,0.13952036]
[1673590413536,55.81696591,1406.2,1406.1,0.13952036]
[1673590414109,52.99768523,1406.2,1406.1,0.13952036]
[1673590414426,71.67948788,1406.2,1406.1,0.13952036]
[1673590414639,72.20737397,1406.2,1406.1,0.13952036]
[1673590414948,72.20737397,1406.2,1405.9,0.14977446]
[1673590414949,21.33711,1406.0,1405.9,0.14977446]
[1673590415175,33.0142463,1406.0,1405.9,0.14977446]
[1673590417080,28.27244272,1406.0,1405.9,0.14977446]
[1673590419598,21.16007272,1406.0,1405.9,0.14977446]
[1673590420529,0.099,1406.0,1405.9,1.66377446]
[1673590420717,8.26453254,1406.3,1405.9,2.71250473]
[1673590420916,3.60633272,1406.2,1406.1,1.517]
[1673590421556,3.60633272,1406.2,1406.0,1.517]
[1673590424181,14.32104,1406.3,1406.0,1.517]
[1673590424399,10.81624272,1406.3,1406.0,8.62933]
[1673590424611,10.81624272,1406.3,1406.0,11.04128747]
[1673590427121,7.20991,1406.3,1406.0,11.04128747]
[1673590427384,7.20991,1406.3,1406.1,15.73043]
[1673590427385,0.099,1406.3,1406.1,15.73043]
[1673590427695,0.099,1406.4,1406.2,3.026]
[1673590428011,0.099,1406.5,1406.3,8.61585]
[1673590428328,1.05432254,1406.6,1406.4,3.022]
[1673590428545,31.53332254,1406.7,1406.4,8.61535]
[1673590428699,6.3425287,1406.7,1406.6,1.514]
[1673590428909,6.3425287,1406.7,1406.6,1.517]
[1673590428910,8.10620572,1406.7,1406.6,1.517]
[1673590429173,6.52333228,1406.7,1406.6,1.517]
[1673590429480,8.10620572,1406.7,1406.6,1.517]
[1673590429857,6.52333228,1406.7,1406.6,1.517]
[1673590430637,17.21272639,1406.7,1406.4,1.571]
[1673590430848,3.83633272,1406.6,1406.4,1.505]
[1673590431051,14.48823519,1406.7,1406.4,1.505]
[1673590431266,20.5604387,1406.7,1406.4,1.505]
[1673590433008,11.86848526,1406.7,1406.5,1.517]
[1673590435982,10.81416272,1406.7,1406.5,1.517]
[1673590437445,0.099,1406.7,1406.6,1.505]
[1673590437671,5.38164111,1406.8,1406.6,1.505]
[1673590437854,4.75965526,1406.8,1406.6,1.505]
[1673590438059,29.13121111,1406.9,1406.6,1.505]
[1673590438284,9.92625266,1406.8,1406.6,1.505]
[1673590438587,8.26167254,1406.8,1406.6,1.505]
[1673590439259,1.15332254,1406.8,1406.6,1.505]
[1673590439647,1.05432254,1406.8,1406.6,1.505]
[1673590439745,2.81791173,1406.8,1406.5,1.507]
[1673590439951,5.46334314,1406.8,1406.5,1.507]
[1673590440284,21.62180479,1406.8,1406.5,1.507]
[1673590441438,18.97639526,1406.8,1406.5,1.507]
[1673590441854,21.62184358,1406.8,1406.5,1.507]
[1673590442079,27.24697625,1406.8,1406.5,1.507]
[1673590442499,3.60633272,1406.7,1406.5,1.507]
[1673590443261,10.71533272,1406.7,1406.5,1.507]
[1673590443432,10.81433272,1406.7,1406.5,1.507]
[1673590448284,11.86865526,1406.7,1406.5,1.507]
[1673590448477,15.07883286,1406.7,1406.5,1.507]
[1673590448939,15.07883286,1406.7,1406.5,1e-08]
[1673590450191,3.70533272,1406.7,1406.6,1.505]
[1673590450506,3.60633272,1406.7,1406.6,1.505]
[1673590453191,0.099,1406.8,1406.6,1.505]
[1673590453395,13.80761266,1406.9,1406.6,8.61434]
[1673590453611,3.60633272,1406.8,1406.5,0.066]
[1673590453881,32.47560809,1406.7,1406.3,1.575]
[1673590454089,10.33101384,1406.6,1406.2,7.5934]
[1673590454394,10.71621272,1406.5,1406.2,7.5274]
[1673590454622,3.60633272,1406.4,1406.1,1.583]
[1673590454782,4.68785399,1406.4,1406.1,1.517]
[1673590455825,4.68785399,1406.4,1406.1,3.517]
[1673590456817,4.68785399,1406.4,1406.1,1.517]
[1673590457242,4.68785399,1406.4,1406.1,8.62883]
[1673590457645,11.79820399,1406.4,1406.1,8.62883]
[1673590457852,11.89720399,1406.4,1406.1,8.62883]
[1673590460449,1.1897204,1406.3,1406.1,8.62883]
[1673590460930,11.89720399,1406.4,1406.1,8.62883]
[1673590462076,12.95152653,1406.4,1406.1,8.62883]
[1673590464680,11.89720399,1406.4,1406.1,8.62883]
[1673590465875,10.81568272,1406.4,1406.2,1.514]
[1673590466051,3.70533272,1406.4,1406.2,1.514]
[1673590466240,3.60633272,1406.4,1406.2,1.514]
[1673590466723,3.60633272,1406.4,1406.2,8.62527]
[1673590469643,5.3821083,1406.5,1406.2,15.73663]
[1673590469821,14.04207909,1406.5,1406.3,1.505]
[1673590470029,14.04207909,1406.5,1406.2,21.39999]
[1673590470251,14.04207909,1406.5,1406.2,21.33399]
[1673590470463,14.04207909,1406.5,1406.2,21.33916201]
[1673590471782,10.43574637,1406.5,1406.2,21.33916201]
[1673590471973,5.3821083,1406.5,1406.2,21.33916201]
[1673590473444,0.099,1406.5,1406.4,1.505]
[1673590473601,31.45528598,1406.6,1406.4,1.505]
[1673590473602,34.19990137,1406.6,1406.4,1.505]
[1673590473862,26.46835526,1406.6,1406.4,1.505]
[1673590474040,29.11391175,1406.6,1406.4,3.505]
[1673590474247,26.46835526,1406.6,1406.4,10.61533]
[1673590474481,29.11389824,1406.6,1406.4,10.61533]
[1673590475023,29.11389824,1406.6,1406.4,8.61533]
[1673590475932,29.11389824,1406.6,1406.4,10.61533]
[1673590476383,29.11389824,1406.6,1406.4,8.61533]
[1673590477120,1.05432254,1406.5,1406.4,7.11033]
[1673590477645,30.69677168,1406.6,1406.4,7.11033]
[1673590478261,7.10984,1406.5,1406.3,1.273]
[1673590478490,1.15332254,1406.5,1406.3,1.207]
[1673590478694,1.05432254,1406.5,1406.3,8.31783]
[1673590478858,2.81811657,1406.5,1406.3,7.11083]
[1673590479062,10.11689756,1406.5,1406.2,15.50312201]
[1673590479280,19.79059572,1406.5,1406.2,7.11649201]
[1673590479509,1.05432254,1406.4,1406.2,7.11649201]
[1673590479731,26.90059572,1406.5,1406.2,7.11649201]
[1673590481482,2.69005957,1406.4,1406.2,7.11649201]
[1673590482219,19.79059572,1406.5,1406.2,7.11649201]
[1673590483073,16.09814745,1406.5,1406.2,7.11649201]
[1673590483279,16.09814745,1406.5,1406.2,14.22785201]
[1673590485915,8.98824745,1406.5,1406.2,14.22785201]
[1673590488419,8.98824745,1406.5,1406.2,22.54921201]
[1673590488420,1.15332254,1406.5,1406.2,22.54921201]
[1673590488571,1.05432254,1406.5,1406.2,22.54921201]
[1673590488730,1.05432254,1406.5,1406.3,2.2549212]
[1673590488944,27.09049322,1406.6,1406.3,21.33188]
[1673590489159,30.69682594,1406.6,1406.3,21.33188]
[1673590489480,1.05432254,1406.5,1406.3,21.33188]
[1673590490946,2.81805493,1406.5,1406.3,21.33188]
[1673590496533,2.81805493,1406.5,1406.3,22.84288]
[1673590499837,6.27579401,1406.5,1406.3,22.84288]
[1673590499991,4.61106162,1406.5,1406.3,22.84288]
[1673590500322,6.09493506,1406.5,1406.3,22.84288]
[1673590500511,6.19393506,1406.5,1406.3,22.84288]
[1673590500998,1.05432254,1406.4,1406.3,22.84288]
[1673590501971,1.05432254,1406.4,1406.3,8.62138]
[1673590502371,2.81813224,1406.4,1406.3,8.62138]
[1673590503711,2.81813224,1406.4,1406.3,6.73995649]
[1673590504025,2.81813224,1406.4,1406.3,13.85080649]
[1673590507708,2.81813224,1406.4,1406.3,6.73995649]
[1673590508022,1.05432254,1406.4,1406.3,6.73995649]
[1673590508233,2.81813224,1406.4,1406.3,6.73995649]
[1673590510974,2.81813224,1406.4,1406.3,13.85080649]
[1673590511122,1.05432254,1406.4,1406.3,13.85080649]
[1673590513322,1.05432254,1406.4,1406.3,20.96165649]
[1673590513536,1.05432254,1406.4,1406.3,12.33980649]
[1673590514259,4.40095597,1406.5,1406.3,12.33980649]
[1673590514387,1.05432254,1406.4,1406.3,12.33980649]
[1673590514812,4.49995597,1406.5,1406.3,12.33980649]
[1673590515060,4.40095597,1406.5,1406.3,12.33980649]
[1673590517126,1.05432254,1406.4,1406.3,12.33980649]
[1673590517547,2.81808573,1406.4,1406.3,12.33980649]
[1673590520091,2.81808573,1406.4,1406.3,12.34180649]
[1673590520374,2.81808573,1406.4,1406.3,12.33980649]
[1673590521310,4.49995597,1406.5,1406.3,12.33980649]
[1673590521519,4.40095597,1406.5,1406.3,12.33980649]
[1673590521781,1.05432254,1406.4,1406.3,12.33980649]
[1673590522199,2.81809573,1406.4,1406.3,12.33980649]
[1673590522405,1.05432254,1406.4,1406.3,12.33980649]
[1673590522638,2.81808956,1406.4,1406.3,12.33980649]
[1673590523372,1.05432254,1406.4,1406.3,12.33980649]
[1673590523516,2.81809418,1406.4,1406.3,12.33980649]
[1673590523732,1.05432254,1406.4,1406.3,12.33980649]
[1673590524198,2.81808799,1406.4,1406.3,12.33980649]
[1673590526826,4.49995597,1406.5,1406.3,12.33980649]
[1673590527002,4.40095597,1406.5,1406.3,12.33980649]
[1673590528622,2.81808253,1406.5,1406.3,22.03512247]
[1673590528763,2.81808253,1406.5,1406.3,25.26672399]
[1673590528980,2.81808253,1406.5,1406.4,1.516]
[1673590529348,4.58171161,1406.5,1406.4,22.84705]
[1673590529868,4.58171161,1406.5,1406.4,21.33105]
[1673590529869,2.81808253,1406.5,1406.4,21.33105]
[1673590530090,4.58171612,1406.5,1406.4,21.33105]
[1673590532207,4.58171612,1406.5,1406.4,19.44972565]
[1673590532801,1.76375999,1406.5,1406.4,19.44972565]
[1673590532988,4.58172293,1406.5,1406.4,19.44972565]
[1673590537310,4.58172293,1406.5,1406.4,25.22174046]
[1673590537311,1.76375999,1406.5,1406.4,25.22174046]
[1673590537534,1.76375999,1406.5,1406.4,26.28620644]
[1673590539606,1.76375999,1406.5,1406.4,25.22174046]
[1673590540974,1.76375999,1406.5,1406.4,25.23158086]
[1673590541617,1.76375999,1406.5,1406.4,26.29604684]
[1673590541820,1.76375999,1406.5,1406.4,25.23158086]
[1673590543554,1.76375999,1406.5,1406.4,26.29604684]
[1673590546793,1.76375999,1406.5,1406.4,25.23158086]
[1673590547484,1.76375999,1406.5,1406.4,26.29604684]
[1673590547899,1.76375999,1406.5,1406.4,25.23158086]
[1673590553625,1.76375999,1406.5,1406.4,23.71158086]
[1673590553915,1.76375999,1406.5,1406.4,33.5445564]
[1673590554148,1.76375999,1406.5,1406.4,40.26718052]
[1673590554376,1.76375999,1406.5,1406.4,38.67119856]
[1673590554519,1.76082167,1406.5,1406.4,38.67119856]
[1673590555403,1.76082167,1406.5,1406.4,40.26659703]
[1673590555925,1.76082167,1406.5,1406.4,38.13995487]
[1673590556965,1.76082167,1406.5,1406.4,33.43331205]
[1673590557190,1.76082167,1406.5,1406.4,34.49695533]
[1673590557398,1.76082167,1406.5,1406.4,34.49697018]
[1673590558238,1.76082167,1406.5,1406.4,38.13995487]
[1673590558562,1.76082167,1406.5,1406.4,34.49681279]
[1673590558880,1.76082167,1406.5,1406.4,34.4968133]
[1673590559210,1.76082167,1406.5,1406.4,38.13995487]
[1673590559353,1.76082167,1406.5,1406.4,39.2034017]
[1673590559775,1.76082167,1406.5,1406.4,38.13995487]
[1673590560022,1.76082167,1406.5,1406.4,38.14195487]
[1673590560381,1.76082167,1406.5,1406.4,38.13995487]
[1673590561202,1.76082167,1406.5,1406.4,38.67119856]
[1673590562730,0.099,1406.7,1406.5,2.0]
[1673590562941,22.33795507,1407.0,1406.6,10.39916349]
[1673590563174,22.33795507,1407.0,1406.9,7.10782]
[1673590563375,0.14895507,1407.0,1406.9,5.22720079]
[1673590563581,0.04995507,1407.0,1406.9,5.22720079]
[1673590563826,0.04995507,1407.0,1406.9,12.33502079]
[1673590568025,0.04995507,1407.0,1406.9,12.7620795]
[1673590572596,0.04995507,1407.0,1406.9,19.8698995]
[1673590579567,0.04995507,1407.0,1406.9,26.12191431]
[1673590580484,0.04995507,1407.0,1406.9,30.81796117]
[1673590580687,0.04995507,1407.0,1406.9,38.93929389]
[1673590581524,0.04995507,1407.0,1406.9,40.00266625]
[1673590581794,0.04995507,1407.0,1406.9,38.93929389]
[1673590583259,0.04995507,1407.0,1406.9,38.95382007]
[1673590583415,0.04995507,1407.0,1406.9,40.01719243]
[1673590584279,0.04995507,1407.0,1406.9,38.95382007]
[1673590586007,0.04789415,1407.0,1406.9,38.95382007]
[1673590587884,0.04789415,1407.0,1406.9,40.01719243]
[1673590588208,0.04789415,1407.0,1406.9,38.95382007]
[1673590590086,0.04995507,1407.1,1406.9,38.95382007]
[1673590590274,0.04995507,1407.1,1407.0,13.28999177]
[1673590590477,0.04995507,1407.1,1407.0,36.61195177]
[1673590592086,0.04995507,1407.1,1407.0,41.30799863]
[1673590593457,0.04995507,1407.1,1407.0,42.37137099]
[1673590593639,0.04995507,1407.1,1407.0,41.30799863]
[1673590593849,0.04995507,1407.1,1407.0,41.30531871]
[1673590594293,0.04995507,1407.1,1407.0,36.60927185]
[1673590595029,0.04995507,1407.1,1407.0,41.30531871]
[1673590599076,0.04995507,1407.1,1407.0,36.60927185]
[1673590599277,0.04995507,1407.1,1407.0,41.30531871]
[1673590604265,0.04995507,1407.1,1407.0,41.30326391]
[1673590604475,0.04995507,1407.1,1407.0,42.36663627]
[1673590604796,0.04995507,1407.1,1407.0,42.36863627]
[1673590605002,0.04995507,1407.1,1407.0,42.36663627]
[1673590605289,0.05823667,1407.2,1407.0,42.36663627]
[1673590605526,0.05823667,1407.2,1407.1,31.17877753]
[1673590605690,0.05823667,1407.2,1407.1,38.87482439]
[1673590606357,0.05823667,1407.2,1407.1,39.93819675]
[1673590607215,0.05823667,1407.2,1407.1,38.87482439]
[1673590607846,0.0534565,1407.3,1407.2,2.0]
[1673590608053,0.05188931,1407.4,1407.2,39.78996863]
[1673590608471,0.05188931,1407.4,1407.3,9.82237958]
[1673590608587,0.05188931,1407.4,1407.3,34.13977958]
[1673590609139,0.05188931,1407.4,1407.3,34.15897867]
[1673590609308,0.05188931,1407.4,1407.3,36.89099348]
[1673590609761,0.05188931,1407.4,1407.3,37.95436584]
[1673590609972,0.05188931,1407.4,1407.3,33.25831898]
[1673590610184,0.05188931,1407.4,1407.3,36.89099348]
[1673590610408,0.05188931,1407.4,1407.3,37.95436584]
[1673590610724,0.06086894,1407.5,1407.3,39.54942437]
[1673590610930,0.06086894,1407.5,1407.4,33.09089177]
[1673590613213,0.06086894,1407.5,1407.4,37.78693863]
[1673590616234,0.06086894,1407.5,1407.4,38.85031099]
[1673590616570,0.06086894,1407.5,1407.4,37.78693863]
[1673590616958,0.06086894,1407.5,1407.4,39.30693863]
[1673590617171,0.06086894,1407.5,1407.4,40.37031099]
[1673590619710,0.06086894,1407.5,1407.4,38.85031099]
[1673590620228,8.94e-06,1407.5,1407.4,38.85031099]
[1673590620332,0.06626945,1407.6,1407.4,40.44536952]
[1673590620548,0.06626945,1407.6,1407.5,30.71608989]
[1673590620742,0.06626945,1407.6,1407.5,32.65271753]
[1673590621942,0.06626945,1407.6,1407.5,33.71608989]
[1673590622369,0.06626945,1407.6,1407.5,39.92313675]
[1673590622531,0.06626945,1407.6,1407.5,38.85976439]
[1673590623024,0.06626945,1407.6,1407.5,39.92313675]
[1673590623170,0.06626945,1407.6,1407.5,39.94142144]
[1673590623589,0.06626945,1407.6,1407.5,38.87804908]
[1673590624953,0.06626945,1407.6,1407.5,39.01019143]
[1673590625406,9.45e-06,1407.6,1407.5,39.01019143]
[1673590625617,0.06901894,1407.8,1407.6,0.002]
[1673590625795,0.06901894,1407.8,1407.7,32.02145272]
[1673590626703,0.06901894,1407.8,1407.7,36.54145272]
[1673590627746,0.06901894,1407.8,1407.7,36.55890974]
[1673590630745,0.08582465,1407.9,1407.8,2.0]
[1673590630958,0.08582465,1407.9,1407.8,26.91617272]
[1673590631268,0.08582465,1407.9,1407.8,32.64818753]
[1673590635213,0.08582465,1407.9,1407.8,34.16818753]
[1673590637422,0.08582465,1407.9,1407.8,38.86423439]
[1673590638843,0.08582465,1407.9,1407.8,34.16818753]
[1673590639673,0.08582465,1407.9,1407.8,32.64818753]
[1673590639845,0.08582465,1407.9,1407.8,27.91617272]
[1673590648194,0.08582465,1407.9,1407.8,28.07536836]
[1673590651102,0.08276568,1407.9,1407.8,28.07536836]
[1673590652457,0.08276568,1407.9,1407.8,29.13874072]
[1673590655588,0.08276568,1407.9,1407.8,30.73379925]
[1673590655715,0.08276568,1407.9,1407.8,35.60055535]
[1673590656866,0.08276568,1407.9,1407.8,36.58886917]
[1673590657766,0.08276568,1407.9,1407.8,38.18328991]
[1673590658129,0.08276568,1407.9,1407.8,36.0565452]
[1673590658356,0.08276568,1407.9,1407.8,38.18328991]
[1673590659830,0.08276568,1407.9,1407.8,39.69828991]
[1673590660229,0.08276568,1407.9,1407.8,42.79991603]
[1673590660654,0.08276568,1407.9,1407.8,38.10386917]
[1673590660987,0.08276568,1407.9,1407.8,45.45821872]
[1673590662653,0.07276839,1407.9,1407.8,45.45821872]
[1673590662855,0.08582465,1408.0,1407.9,2.0]
[1673590663080,0.08582465,1408.0,1407.9,31.70175244]
[1673590663298,0.08582465,1408.0,1407.9,35.76770383]
[1673590663533,0.08582465,1408.0,1407.9,35.76770683]
[1673590663751,0.08582465,1408.0,1407.9,34.70436152]
[1673590664653,0.08582465,1408.0,1407.9,35.76785538]
[1673590665847,0.08582465,1408.0,1407.9,34.70436152]
[1673590666225,0.08582465,1408.0,1407.9,35.768017]
[1673590667014,0.08582465,1408.0,1407.9,34.70436152]
[1673590668371,0.08582465,1408.0,1407.9,36.83110623]
[1673590670098,0.08582465,1408.0,1407.9,34.70436152]
[1673590670301,0.08582465,1408.0,1407.9,33.7679322]
[1673590670501,0.08582465,1408.0,1407.9,31.18536152]
[1673590670678,0.08582465,1408.0,1407.9,25.53373075]
[1673590670930,0.08582465,1408.0,1407.9,28.98086783]
[1673590672361,0.08582465,1408.0,1407.9,29.14006347]
[1673590672614,0.08582465,1408.0,1407.9,28.98086783]
[1673590679103,0.08582465,1408.0,1407.9,27.9172518]
[1673590680077,0.08582465,1408.0,1407.9,28.98086783]
[1673590680287,0.08582465,1408.0,1407.9,32.77130181]
[1673590680538,0.08582465,1408.0,1407.9,32.93049745]
[1673590682089,0.08582465,1408.0,1407.9,29.14006347]
[1673590682448,0.08582465,1408.0,1407.9,28.98086783]
[1673590683135,0.08235533,1408.0,1407.9,28.98086783]
[1673590686758,0.08235533,1408.0,1407.9,29.49511716]
[1673590686968,0.08235533,1408.0,1407.9,31.24930912]
[1673590687223,0.08235533,1408.0,1407.9,35.3038425]
[1673590689748,0.08235533,1408.0,1407.9,34.24022647]
[1673590691938,0.08235533,1408.0,1407.9,35.30432964]
[1673590692161,0.08235533,1408.0,1407.9,34.24022647]
[1673590692335,0.08235533,1408.0,1407.9,35.30433615]
[1673590693181,0.08235533,1408.0,1407.9,34.24022647]
[1673590695073,0.08235533,1408.0,1407.9,35.30443928]
[1673590697934,0.08235533,1408.0,1407.9,35.30446054]
[1673590701385,0.08235533,1408.0,1407.9,29.65232176]
[1673590702438,0.08235533,1408.0,1407.9,29.65432176]
[1673590702662,0.08235533,1408.0,1407.9,28.58808769]
[1673590702997,0.08235533,1408.0,1407.9,29.65232176]
[1673590704415,0.08235533,1408.0,1407.9,28.58808769]
[1673590705801,0.08235533,1408.0,1407.9,24.98175497]
[1673590705979,0.08235533,1408.0,1407.9,24.82255933]
[1673590707949,1.13667787,1408.0,1407.9,24.82255933]
[1673590709479,4.68606838,1408.0,1407.9,14.71978933]
[1673590709811,8.84790769,1408.0,1407.9,7.61321482]
[1673590709967,7.89101057,1408.0,1407.9,7.61321482]
[1673590711475,7.89060466,1408.0,1407.9,7.61321482]
[1673590711636,7.89061947,1408.0,1407.9,7.61321482]
[1673590713330,6.30329006,1408.0,1407.9,7.61321482]
[1673590714583,6.30029006,1408.0,1407.9,7.61521482]
[1673590714788,6.30329006,1408.0,1407.9,7.61321482]
[1673590715543,4.53847143,1408.0,1407.9,7.61521482]
[1673590715735,6.2043267,1408.0,1407.9,7.61321482]
[1673590715945,6.3033267,1408.0,1407.9,7.61321482]
[1673590716576,6.3033267,1408.0,1407.9,0.51424933]
[1673590716814,6.38365611,1408.0,1407.9,0.51424933]
[1673590717023,7.90365611,1408.0,1407.9,0.51424933]
[1673590717308,13.94538189,1408.0,1407.9,0.51424933]
[1673590718255,16.41014722,1408.0,1407.9,0.51424933]
[1673590719970,32.61468722,1408.0,1407.9,0.51424933]
[1673590720152,4.55351066,1408.0,1407.9,0.51424933]
[1673590720358,6.21642587,1408.0,1407.9,0.51424933]
[1673590720592,6.31542587,1408.0,1407.9,0.51424933]
[1673590722519,4.55351066,1408.0,1407.9,0.51424933]
[1673590722678,6.21639743,1408.0,1407.9,0.51424933]
[1673590722879,6.31539743,1408.0,1407.9,0.51424933]
[1673590723413,3.49392721,1408.0,1407.9,0.51424933]
[1673590723621,3.39492721,1408.0,1407.9,0.51424933]
[1673590725713,0.08235533,1408.0,1407.9,14.71978933]
[1673590725938,0.08235533,1408.0,1407.9,21.82255933]
[1673590731756,0.08033623,1408.0,1407.9,21.82255933]
[1673590750849,0.0771193,1408.0,1407.9,21.82255933]
[1673590751573,0.0771193,1408.0,1407.9,24.84432216]
[1673590756069,0.0771193,1408.0,1407.9,27.84432216]
[1673590756200,0.0771193,1408.0,1407.9,28.90855623]
[1673590760035,0.0771193,1408.0,1407.9,29.06775187]
[1673590760391,0.0771193,1408.0,1407.9,30.66274819]
[1673590763340,0.0771193,1408.0,1407.9,29.06775187]
[1673590764773,0.0771193,1408.0,1407.9,30.66274819]
[1673590765086,0.0771193,1408.0,1407.9,26.04598904]
[1673590765300,0.0771193,1408.0,1407.9,25.8867934]
[1673590765679,1.3841193,1408.0,1407.9,24.82255933]
[1673590766358,2.44370275,1408.0,1407.9,24.82255933]
[1673590766516,1.3841193,1408.0,1407.9,24.82255933]
[1673590767056,1.3841193,1408.0,1407.9,17.71978933]
[1673590767248,2.44370275,1408.0,1407.9,17.71978933]
[1673590767568,4.20551165,1408.0,1407.9,17.71978933]
[1673590768359,4.20551165,1408.0,1407.9,14.71978933]
[1673590769086,2.44370275,1408.0,1407.9,14.71978933]
[1673590769249,1.3841193,1408.0,1407.9,15.7840234]
[1673590769711,0.0771193,1408.0,1407.9,22.8867934]
[1673590771203,1.3841193,1408.0,1407.9,22.8867934]
[1673590771413,1.3841193,1408.0,1407.9,21.82255933]
[1673590771763,1.3841193,1408.0,1407.9,14.71978933]
[1673590773346,1.80529367,1408.0,1407.9,0.51424933]
[1673590773783,1.80529367,1408.0,1407.9,7.61701933]
[1673590774132,1.80529367,1408.0,1407.9,14.71978933]
[1673590774497,1.3841193,1408.0,1407.9,14.71978933]
[1673590777673,1.3841193,1408.0,1407.9,7.61701933]
[1673590777862,2.44370275,1408.0,1407.9,7.61701933]
[1673590780167,2.44370275,1408.0,1407.9,0.51424933]
[1673590780419,4.2055501,1408.0,1407.9,0.51424933]
[1673590780649,5.05031573,1408.0,1407.9,0.51424933]
[1673590780859,5.14931573,1408.0,1407.9,7.61701933]
[1673590782076,2.32788493,1408.0,1407.9,7.61701933]
[1673590782274,1.13670275,1408.0,1407.9,7.61701933]
[1673590786214,2.44370275,1408.0,1407.9,7.61701933]
[1673590786601,1.13670275,1408.0,1407.9,7.61701933]
[1673590787023,0.0771193,1408.0,1407.9,7.61701933]
[1673590800716,1.13670275,1408.0,1407.9,7.61701933]
[1673590800883,0.0771193,1408.0,1407.9,7.61701933]
[1673590801994,1.3841193,1408.0,1407.9,7.61701933]
[1673590802273,1.13670275,1408.0,1407.9,7.61701933]
[1673590802904,2.89849662,1408.0,1407.9,7.61701933]
[1673590803910,2.89849662,1408.0,1407.9,7.61901933]
[1673590804087,2.89849662,1408.0,1407.9,7.61701933]
[1673590808282,2.89849662,1408.0,1407.9,7.61901933]
[1673590808441,2.89849662,1408.0,1407.9,7.61701933]
[1673590812346,2.89849662,1408.0,1407.9,7.61901933]
[1673590812543,2.89849662,1408.0,1407.9,7.61701933]
[1673590812963,0.0771193,1408.0,1407.9,22.8867934]
[1673590813185,0.0771193,1408.0,1407.9,26.79529709]
[1673590813638,0.0771193,1408.0,1407.9,27.86010908]
[1673590813820,0.0771193,1408.0,1407.9,28.01930255]
[1673590814024,0.0771193,1408.0,1407.9,27.86011325]
[1673590816582,0.0771193,1408.0,1407.9,26.26511693]
[1673590818110,0.0771193,1408.0,1407.9,26.26772601]
[1673590822814,0.07379984,1408.0,1407.9,31.92023889]
[1673590822958,0.07379984,1408.0,1407.9,32.07943453]
[1673590824748,0.07379984,1408.0,1407.9,33.14354248]
[1673590829602,0.07379984,1408.0,1407.9,32.61118292]
[1673590829810,0.07379984,1408.0,1407.9,37.20706818]
[1673590830031,0.07379984,1408.0,1407.9,35.61118292]
[1673590830623,0.07379984,1408.0,1407.9,37.20705381]
[1673590832830,0.07379984,1408.0,1407.9,35.0803091]
[1673590838328,0.07379984,1408.0,1407.9,36.14361318]
[1673590839075,0.07379984,1408.0,1407.9,35.0803091]
[1673590839600,0.07379984,1408.0,1407.9,36.14360549]
[1673590839806,0.07379984,1408.0,1407.9,35.0803091]